fUSD/lending_fUSD_20251212
["ID","MTS","AMOUNT","RATE_DAILY","PERIOD"]
[398334605,1765538011863,-500.0,0.00039452,30]
[398334606,1765538011873,-605.17,0.00039452,30]
[398334607,1765538011882,-398.91738236,0.00039452,30]
[398334608,1765538011891,-677.17,0.00039452,30]
[398334609,1765538011900,-610.47,0.00039452,30]
[398334610,1765538011910,-1219.89,0.00039452,30]
[398334611,1765538011919,-500.0,0.00039452,30]
[398334612,1765538011931,-1003.5,0.00039452,30]
[398334613,1765538011940,-658.88,0.00039452,30]
[398334614,1765538011949,-621.26,0.00039452,30]
[398334615,1765538011959,-500.0,0.00039452,30]
[398334616,1765538011969,-500.0,0.00039452,30]
[398334617,1765538011978,-500.0,0.00039452,30]
[398334618,1765538011988,-2089.28,0.00039452,30]
[398334619,1765538011997,-500.0,0.00039452,30]
[398334620,1765538012007,-777.33,0.00039452,30]
[398334621,1765538012016,-500.0,0.00039452,30]
[398334622,1765538012026,-533.87816178,0.00039452,30]
[398334623,1765538012036,-500.0,0.00039452,30]
[398334624,1765538012045,-506.96,0.00039452,30]
[398334625,1765538012055,-600.44,0.00039452,30]
[398334626,1765538012064,-500.0,0.00039452,30]
[398334627,1765538012074,-500.0,0.00039452,30]
[398334628,1765538012084,-557.42,0.00039452,30]
[398334629,1765538012093,-610.54,0.00039452,30]
[398334630,1765538012103,-516.74,0.00039452,30]
[398334631,1765538012112,-500.0,0.00039452,15]
[398334632,1765538012121,-759.14,0.00039452,30]
[398334633,1765538012131,-571.0,0.00039452,30]
[398334634,1765538012141,-588.85,0.00039452,30]
[398334635,1765538012161,-1161.86,0.00039452,30]
[398334636,1765538012181,-1044.6,0.00039452,30]
[398334637,1765538012200,-2199.62,0.00039452,30]
[398334638,1765538012220,-500.0,0.00039452,30]
[398334639,1765538012239,-500.0,0.00039452,30]
[398334640,1765538012258,-503.79,0.00039452,30]
[398334641,1765538012278,-500.0,0.00039452,30]
[398334642,1765538012300,-500.0,0.00039452,30]
[398334643,1765538012319,-500.0,0.00039452,30]
[398334644,1765538012336,-500.0,0.00039452,30]
[398334645,1765538012353,-500.0,0.00039452,30]
[398334646,1765538012369,-809.01,0.00039452,30]
[398334647,1765538012386,-719.27,0.00039452,30]
[398334648,1765538012401,-500.0,0.00039452,30]
[398334649,1765538012418,-578.6,0.00039452,30]
[398334650,1765538012434,-500.0,0.00039452,30]
[398334651,1765538012451,-2620.34,0.00039452,30]
[398334652,1765538012466,-1731.68,0.00039452,30]
[398334653,1765538012481,-517.1,0.00039452,30]
[398334654,1765538012496,-2018.77,0.00039452,30]
[398334655,1765538012510,-500.0,0.00039452,30]
[398334656,1765538012524,-822.61,0.00039452,30]
[398334657,1765538012539,-500.0,0.00039452,30]
[398334658,1765538012553,-500.0,0.00039452,30]
[398334659,1765538012567,-511.8,0.00039452,30]
[398334660,1765538012583,-500.0,0.00039452,30]
[398334661,1765538012599,-1929.49,0.00039452,30]
[398334662,1765538012614,-1245.76,0.00039452,30]
[398334663,1765538012628,-500.0,0.00039452,30]
[398334664,1765538012643,-629.76,0.00039452,30]
[398334665,1765538012657,-500.0,0.00039452,30]
[398334666,1765538012672,-504.87,0.00039452,30]
[398334667,1765538012687,-2747.32,0.00039452,30]
[398334668,1765538012703,-3082.74,0.00039452,30]
[398334669,1765538012721,-500.0,0.00039452,30]
[398334670,1765538012737,-1765.66,0.00039452,30]
[398334671,1765538012751,-992.27,0.00039452,30]
[398334672,1765538012770,-669.73,0.00039452,30]
[398334673,1765538012784,-810.69,0.00039452,30]
[398334674,1765538012798,-1342.66,0.00039452,30]
[398334675,1765538012817,-500.0,0.00039452,30]
[398334676,1765538012832,-550.01416587,0.00039452,30]
[398334677,1765538012850,-648.8,0.00039452,30]
[398334678,1765538012865,-682.03,0.00039452,30]
[398334679,1765538012885,-1864.3,0.00039452,30]
[398334680,1765538012900,-500.0,0.00039452,30]
[398334681,1765538012916,-500.0,0.00039452,30]
[398334682,1765538012930,-689.18,0.00039452,30]
[398334683,1765538012947,-598.31,0.00039452,30]
[398334684,1765538012963,-792.27,0.00039452,30]
[398334685,1765538012980,-2535.84,0.00039452,30]
[398334686,1765538012996,-500.0,0.00039452,30]
[398334687,1765538013011,-500.0,0.00039452,30]
[398334688,1765538013028,-1454.84,0.00039452,30]
[398334689,1765538013043,-500.0,0.00039452,30]
[398334690,1765538013059,-500.0,0.00039452,30]
[398334691,1765538013074,-500.0,0.00039452,30]
[398334692,1765538013090,-836.48,0.00039452,30]
[398334693,1765538013107,-500.0,0.00039452,30]
[398334694,1765538013127,-630.54,0.00039452,30]
[398334695,1765538013141,-542.7,0.00039452,30]
[398334696,1765538013156,-500.0,0.00039452,30]
[398334697,1765538013170,-625.15,0.00039452,30]
[398334698,1765538013185,-2978.69,0.00039452,30]
[398334699,1765538013201,-500.0,0.00039452,30]
[398334700,1765538013218,-500.0,0.00039452,30]
[398334701,1765538013236,-566.99,0.00039452,30]
[398334702,1765538013254,-501.3,0.00039452,30]
[398334703,1765538013269,-506.58116436,0.00039452,30]
[398334704,1765538013284,-1577.35,0.00039452,30]
[398334705,1765538013300,-500.0,0.00039452,30]
[398334706,1765538013314,-500.0,0.00039452,30]
[398334707,1765538013330,-716.61,0.00039452,30]
[398334708,1765538013347,-508.66968167,0.00039452,30]
[398334709,1765538013363,-500.0,0.00039452,30]
[398334710,1765538013378,-2248.13,0.00039452,30]
[398334711,1765538013396,-556.61,0.00039452,30]
[398334712,1765538013411,-500.0,0.00039452,30]
[398334713,1765538013430,-500.0,0.00039452,30]
[398334714,1765538013451,-1673.77,0.00039452,30]
[398334715,1765538013465,-500.0,0.00039452,30]
[398334716,1765538013480,-2331.84,0.00039452,30]
[398334717,1765538013496,-1028.79,0.00039452,30]
[398334718,1765538013512,-1527.47,0.00039452,30]
[398334719,1765538013528,-2147.02,0.00039452,30]
[398334720,1765538013545,-500.0,0.00039452,30]
[398334721,1765538013561,-500.0,0.00039452,30]
[398334722,1765538013576,-500.28,0.00039452,30]
[398334723,1765538013592,-1715.19,0.00039452,30]
[398334724,1765538013608,-594.01,0.00039452,30]
[398334725,1765538013622,-1740.0,0.00039452,30]
[398334726,1765538013637,-567.29,0.00039452,30]
[398334727,1765538013653,-500.0,0.00039452,30]
[398334728,1765538013668,-633.47,0.00039452,30]
[398334729,1765538013683,-2330.09,0.00039452,30]
[398334730,1765538013698,-500.0,0.00039452,30]
[398334731,1765538013713,-1444.41,0.00039452,30]
[398334732,1765538013727,-500.0,0.00039452,30]
[398334733,1765538013741,-527.63,0.00039452,30]
[398334734,1765538013764,-500.0,0.00039452,30]
[398334735,1765538013788,-563.14,0.00039452,30]
[398334736,1765538013810,-588.23,0.00039452,30]
[398334737,1765538013832,-500.0,0.00039452,30]
[398334738,1765538013850,-622.804289,0.00039452,30]
[398334739,1765538013866,-500.0,0.00039452,30]
[398334740,1765538013887,-1747.95,0.00039452,30]
[398334741,1765538013907,-763.9,0.00039452,30]
[398334742,1765538013922,-500.0,0.00039452,30]
[398334743,1765538013939,-500.0,0.00039452,30]
[398334744,1765538013957,-500.0,0.00039452,30]
[398334745,1765538013972,-818.9,0.00039452,30]
[398334746,1765538013989,-972.17,0.00039452,30]
[398334747,1765538014007,-573.6,0.00039452,30]
[398334748,1765538014021,-556.13,0.00039452,30]
[398334749,1765538014036,-500.0,0.00039452,30]
[398334750,1765538014057,-666.96,0.00039452,30]
[398334751,1765538014072,-500.0,0.00039452,30]
[398334752,1765538014087,-1283.05,0.00039452,30]
[398334753,1765538014101,-633.61411,0.00039452,30]
[398334754,1765538014117,-798.2,0.00039452,30]
[398334755,1765538014133,-500.0,0.00039452,30]
[398334756,1765538014148,-6586.39,0.00039452,30]
[398334757,1765538014166,-989.92,0.00039452,30]
[398334758,1765538014180,-500.0,0.00039452,30]
[398334759,1765538014196,-500.0,0.00039452,30]
[398334760,1765538014210,-502.68,0.00039452,30]
[398334761,1765538014224,-500.0,0.00039452,30]
[398334762,1765538014239,-500.0,0.00039452,30]
[398334763,1765538014253,-500.0,0.00039452,30]
[398334764,1765538014268,-500.0,0.00039452,30]
[398334765,1765538014284,-709.01,0.00039452,30]
[398334766,1765538014300,-500.0,0.00039452,30]
[398334767,1765538014316,-500.0,0.00039452,30]
[398334768,1765538014330,-1180.74,0.00039452,30]
[398334769,1765538014345,-589.52,0.00039452,30]
[398334770,1765538014360,-529.51,0.00039452,30]
[398334771,1765538014373,-500.0,0.00039452,30]
[398334772,1765538014387,-500.0,0.00039452,30]
[398334773,1765538014401,-500.0,0.00039452,30]
[398334774,1765538014417,-500.0,0.00039452,30]
[398334775,1765538014434,-500.0,0.00039452,30]
[398334776,1765538014448,-720.32,0.00039452,30]
[398334777,1765538014464,-509.99,0.00039452,30]
[398334778,1765538014479,-500.0,0.00039452,30]
[398334779,1765538014493,-752.38,0.00039452,30]
[398334780,1765538014513,-500.0,0.00039452,30]
[398334781,1765538014529,-899.81,0.00039452,30]
[398334782,1765538014543,-500.0,0.00039452,30]
[398334783,1765538014557,-500.0,0.00039452,30]
[398334784,1765538014572,-634.12,0.00039452,30]
[398334785,1765538014588,-1738.8,0.00039452,30]
[398334786,1765538014603,-503.97298958,0.00039452,30]
[398334787,1765538014618,-500.0,0.00039452,30]
[398334788,1765538014632,-622.13,0.00039452,30]
[398334789,1765538014648,-500.0,0.00039452,30]
[398334790,1765538014661,-10008.33,0.00039452,30]
[398334791,1765538014676,-1816.12,0.00039452,30]
[398334792,1765538014690,-500.0,0.00039452,30]
[398334793,1765538014706,-1222.19,0.00039452,30]
[398334794,1765538014721,-500.0,0.00039452,30]
[398334795,1765538014735,-506.67,0.00039452,30]
[398334796,1765538014749,-500.0,0.00039452,30]
[398334797,1765538014763,-614.15,0.00039452,30]
[398334798,1765538014777,-853.5,0.00039452,30]
[398334799,1765538014792,-867.61,0.00039452,30]
[398334800,1765538014807,-642.79,0.00039452,30]
[398334801,1765538014822,-500.0,0.00039452,30]
[398334802,1765538014836,-1730.62,0.00039452,30]
[398334803,1765538014853,-500.0,0.00039452,30]
[398334804,1765538014867,-500.0,0.00039452,30]
[398334805,1765538014881,-500.0,0.00039452,30]
[398334806,1765538014896,-2044.69,0.00039452,30]
[398334807,1765538014910,-5043.62,0.00039452,30]
[398334808,1765538014926,-500.0,0.00039452,30]
[398334809,1765538014942,-500.0,0.00039452,30]
[398334810,1765538014957,-1215.55,0.00039452,30]
[398334811,1765538014971,-500.0,0.00039452,30]
[398334812,1765538014986,-500.0,0.00039452,30]
[398334813,1765538015000,-500.0,0.00039452,30]
[398334814,1765538015015,-500.0,0.00039452,30]
[398334815,1765538015029,-500.0,0.00039452,30]
[398334816,1765538015044,-1545.49,0.00039452,30]
[398334817,1765538015059,-660.88,0.00039452,30]
[398334818,1765538015073,-1589.48,0.00039452,30]
[398334819,1765538015089,-628.02,0.00039452,30]
[398334820,1765538015104,-253.64230404,0.00039452,30]
[398334821,1765538015118,-626.53,0.00039452,30]
[398334822,1765538015141,-602.06,0.00039452,30]
[398334823,1765538015156,-500.0,0.00039452,30]
[398334824,1765538015171,-840.42,0.00039452,30]
[398334825,1765538015185,-500.0,0.00039452,30]
[398334826,1765538015201,-699.47,0.00039452,30]
[398334827,1765538015216,-905.19,0.00039452,30]
[398334828,1765538015230,-752.57,0.00039452,30]
[398334829,1765538015244,-2585.93,0.00039452,30]
[398334830,1765538015259,-789.34,0.00039452,30]
[398334831,1765538015286,-3440.78,0.00039452,30]
[398334832,1765538015309,-563.79,0.00039452,30]
[398334833,1765538015329,-500.0,0.00039452,30]
[398334834,1765538015348,-500.0,0.00039452,30]
[398334835,1765538015368,-1586.65,0.00039452,30]
[398334836,1765538015386,-273.46679205,0.00039452,30]
[398334837,1765538015404,-571.37,0.00039452,30]
[398334838,1765538015422,-500.54,0.00039452,30]
[398334839,1765538015438,-500.0,0.00039452,30]
[398334840,1765538015455,-509.62,0.00039452,30]
[398334841,1765538015472,-500.0,0.00039452,30]
[398334842,1765538015489,-669.04,0.00039452,30]
[398334843,1765538015505,-3771.23,0.00039452,30]
[398334844,1765538015521,-813.18,0.00039452,30]
[398334845,1765538015537,-500.0,0.00039452,30]
[398334846,1765538015552,-500.0,0.00039452,30]
[398334847,1765538015569,-1179.73,0.00039452,30]
[398334848,1765538015584,-500.0,0.00039452,30]
[398334849,1765538015599,-500.0,0.00039452,30]
[398334850,1765538015615,-1235.8,0.00039452,30]
[398334851,1765538015632,-1360.54,0.00039452,30]
[398334852,1765538015647,-604.12,0.00039452,30]
[398334853,1765538015662,-500.0,0.00039452,30]
[398334854,1765538015676,-500.0,0.00039452,30]
[398334855,1765538015692,-500.0,0.00039452,2]
[398334856,1765538015707,-500.0,0.00039452,30]
[398334857,1765538015723,-500.0,0.00039452,30]
[398334858,1765538015738,-511.97014687,0.00039452,30]
[398334859,1765538015752,-972.77,0.00039452,30]
[398334860,1765538015767,-500.0,0.00039452,30]
[398334861,1765538015782,-500.0,0.00039452,30]
[398334862,1765538015796,-500.0,0.00039452,30]
[398334863,1765538015810,-500.0,0.00039452,30]
[398334864,1765538015825,-500.0,0.00039452,30]
[398334865,1765538015840,-4363.05,0.00039452,30]
[398334866,1765538015859,-731.82,0.00039452,30]
[398334867,1765538015874,-1418.58,0.00039452,30]
[398334868,1765538015891,-1625.02,0.00039452,30]
[398334869,1765538015906,-500.0,0.00039452,30]
[398334870,1765538016475,-500.0,0.00039452,30]
[398334871,1765538016494,-500.0,0.00039452,30]
[398334872,1765538016503,-500.0,0.00039452,30]
[398334873,1765538016513,-500.0,0.00039452,30]
[398334874,1765538016523,-500.0,0.00039452,30]
[398334875,1765538016532,-500.0,0.00039452,30]
[398334876,1765538016542,-805.19,0.00039452,30]
[398334877,1765538016551,-1679.93,0.00039452,30]
[398334878,1765538016561,-500.0,0.00039452,30]
[398334879,1765538016571,-500.0,0.00039452,30]
[398334880,1765538016580,-500.0,0.00039452,30]
[398334881,1765538016591,-11739.26,0.00039452,30]
[398334882,1765538016601,-510.13,0.00039452,30]
[398334883,1765538016610,-500.0,0.00039452,30]
[398334884,1765538016620,-500.0,0.00039452,30]
[398334885,1765538016629,-500.0,0.00039452,30]
[398334886,1765538016639,-1704.19,0.00039452,30]
[398334887,1765538016648,-878.65,0.00039452,30]
[398334888,1765538016658,-500.0,0.00039452,30]
[398334889,1765538016668,-619.07,0.00039452,30]
[398334890,1765538016678,-2892.66,0.00039452,30]
[398334891,1765538016687,-500.0,0.00039452,30]
[398334892,1765538016702,-500.0,0.00039452,30]
[398334893,1765538016712,-500.0,0.00039452,30]
[398334894,1765538016723,-500.0,0.00039452,30]
[398334895,1765538016732,-1899.29,0.00039452,30]
[398334896,1765538016742,-500.0,0.00039452,30]
[398334897,1765538016751,-1019.28,0.00039452,30]
[398334898,1765538016760,-500.0,0.00039452,30]
[398334899,1765538016770,-500.0,0.00039452,30]
[398334900,1765538016780,-1418.57,0.00039452,30]
[398334901,1765538016789,-500.0,0.00039452,30]
[398334902,1765538016799,-500.0,0.00039452,30]
[398334903,1765538016808,-500.0,0.00039452,30]
[398334904,1765538016818,-500.0,0.00039452,30]
[398334905,1765538016828,-500.0,0.00039452,30]
[398334906,1765538016838,-736.31,0.00039452,30]
[398334907,1765538016850,-500.0,0.00039452,30]
[398334908,1765538016861,-500.0,0.00039452,30]
[398334909,1765538016871,-500.0,0.00039452,30]
[398334910,1765538016880,-803.38,0.00039452,30]
[398334911,1765538016890,-500.0,0.00039452,30]
[398334912,1765538016899,-522.15,0.00039452,30]
[398334913,1765538016909,-500.0,0.00039452,30]
[398334914,1765538016919,-500.0,0.00039452,30]
[398334915,1765538016929,-500.0,0.00039452,30]
[398334916,1765538016939,-500.0,0.00039452,30]
[398334917,1765538016948,-500.0,0.00039452,30]
[398334918,1765538016958,-1055.47,0.00039452,30]
[398334919,1765538016968,-694.39,0.00039452,30]
[398334920,1765538016978,-1480.3,0.00039452,30]
[398334921,1765538016988,-1529.14,0.00039452,30]
[398334922,1765538016998,-1887.69,0.00039452,30]
[398334923,1765538017007,-500.0,0.00039452,30]
[398334924,1765538017017,-1537.38,0.00039452,30]
[398334925,1765538017027,-500.0,0.00039452,30]
[398334926,1765538017036,-814.49,0.00039452,30]
[398334927,1765538017046,-500.0,0.00039452,30]
[398334928,1765538017056,-500.0,0.00039452,30]
[398334929,1765538017066,-878.0,0.00039452,30]
[398334930,1765538017076,-500.0,0.00039452,30]
[398334931,1765538017086,-542.52,0.00039452,30]
[398334932,1765538017096,-500.0,0.00039452,30]
[398334933,1765538017105,-500.0,0.00039452,30]
[398334934,1765538017115,-500.0,0.00039452,30]
[398334935,1765538017125,-1609.53,0.00039452,30]
[398334936,1765538017135,-500.0,0.00039452,30]
[398334937,1765538017144,-1220.84,0.00039452,30]
[398334938,1765538017154,-500.0,0.00039452,30]
[398334939,1765538017163,-500.0,0.00039452,30]
[398334940,1765538017173,-1987.44,0.00039452,30]
[398334941,1765538017182,-500.0,0.00039452,30]
[398334942,1765538017192,-500.0,0.00039452,30]
[398334943,1765538017202,-1330.17,0.00039452,30]
[398334944,1765538017211,-994.63,0.00039452,30]
[398334945,1765538017221,-1382.15,0.00039452,30]
[398334946,1765538017230,-500.0,0.00039452,30]
[398334947,1765538017240,-500.0,0.00039452,30]
[398334948,1765538017249,-1159.62,0.00039452,30]
[398334949,1765538017259,-500.0,0.00039452,30]
[398334950,1765538017269,-500.0,0.00039452,30]
[398334951,1765538017279,-500.0,0.00039452,30]
[398334952,1765538017289,-1136.89,0.00039452,30]
[398334953,1765538017299,-556.58,0.00039452,30]
[398334954,1765538017308,-9826.53,0.00039452,30]
[398334955,1765538017318,-500.0,0.00039452,30]
[398334956,1765538017328,-502.82085789,0.00039452,30]
[398334957,1765538017337,-500.0,0.00039452,30]
[398334958,1765538017347,-500.0,0.00039452,30]
[398334959,1765538017356,-972.17,0.00039452,30]
[398334960,1765538017366,-500.0,0.00039452,30]
[398334961,1765538017375,-731.37,0.00039452,30]
[398334962,1765538017384,-503.27881731,0.00039452,30]
[398334963,1765538017394,-1614.96,0.00039452,30]
[398334964,1765538017404,-503.70432994,0.00039452,30]
[398334965,1765538017413,-500.0,0.00039452,30]
[398334966,1765538017423,-4738.09,0.00039452,30]
[398334967,1765538017432,-1327.17,0.00039452,30]
[398334968,1765538017442,-500.0,0.00039452,30]
[398334969,1765538017451,-3631.76,0.00039452,30]
[398334970,1765538017461,-500.0,0.00039452,30]
[398334971,1765538017471,-500.0,0.00039452,30]
[398334972,1765538017481,-500.0,0.00039452,30]
[398334973,1765538017491,-500.0,0.00039452,30]
[398334974,1765538017500,-963.98,0.00039452,30]
[398334975,1765538017510,-500.0,0.00039452,30]
[398334976,1765538017519,-634.95,0.00039452,30]
[398334977,1765538017529,-3329.8,0.00039452,30]
[398334978,1765538017539,-500.0,0.00039452,30]
[398334979,1765538017549,-500.0,0.00039452,30]
[398334980,1765538017559,-500.0,0.00039452,30]
[398334981,1765538017568,-1124.07,0.00039452,30]
[398334982,1765538017578,-500.0,0.00039452,30]
[398334983,1765538017587,-500.0,0.00039452,30]
[398334984,1765538017597,-876.92,0.00039452,30]
[398334985,1765538017606,-500.0,0.00039452,30]
[398334986,1765538017616,-500.0,0.00039452,30]
[398334987,1765538017626,-500.0,0.00039452,30]
[398334988,1765538017636,-500.0,0.00039452,30]
[398334989,1765538017645,-500.0,0.00039452,30]
[398334990,1765538017654,-500.0,0.00039452,30]
[398334991,1765538017664,-500.0,0.00039452,30]
[398334992,1765538017673,-500.0,0.00039452,30]
[398334993,1765538017683,-500.0,0.00039452,30]
[398334994,1765538017692,-613.85,0.00039452,30]
[398334995,1765538017702,-500.0,0.00039452,30]
[398334996,1765538017711,-705.22,0.00039452,30]
[398334997,1765538017720,-500.0,0.00039452,30]
[398334998,1765538017729,-601.44,0.00039452,30]
[398334999,1765538017738,-680.86,0.00039452,30]
[398335000,1765538017747,-500.0,0.00039452,30]
[398335001,1765538017757,-500.0,0.00039452,30]
[398335002,1765538017767,-500.0,0.00039452,30]
[398335003,1765538017776,-500.0,0.00039452,30]
[398335004,1765538017786,-317.72640896,0.00039452,30]
[398335005,1765538017795,-1255.36,0.00039452,30]
[398335006,1765538017805,-500.0,0.00039452,30]
[398335007,1765538017815,-500.0,0.00039452,30]
[398335008,1765538017824,-757.92,0.00039452,30]
[398335009,1765538017834,-500.0,0.00039452,30]
[398335010,1765538017843,-500.0,0.00039452,30]
[398335011,1765538017856,-976.99,0.00039452,30]
[398335012,1765538017866,-681.9,0.00039452,30]
[398335013,1765538017875,-500.0,0.00039452,30]
[398335014,1765538017885,-500.0,0.00039452,30]
[398335015,1765538017895,-766.68,0.00039452,30]
[398335016,1765538017905,-500.0,0.00039452,30]
[398335017,1765538017915,-404.13559148,0.00039452,30]
[398335018,1765538017924,-500.0,0.00039452,30]
[398335019,1765538017935,-500.0,0.00039452,30]
[398335020,1765538017945,-500.0,0.00039452,30]
[398335021,1765538017954,-500.0,0.00039452,30]
[398335022,1765538017963,-500.0,0.00039452,30]
[398335023,1765538017973,-500.0,0.00039452,30]
[398335024,1765538017983,-500.0,0.00039452,30]
[398335025,1765538017996,-500.0,0.00039452,30]
[398335026,1765538018006,-500.0,0.00039452,30]
[398335027,1765538018016,-820.89,0.00039452,30]
[398335028,1765538018026,-1425.77,0.00039452,30]
[398335029,1765538018036,-500.0,0.00039452,30]
[398335030,1765538018046,-500.0,0.00039452,30]
[398335031,1765538018056,-2237.4,0.00039452,30]
[398335032,1765538018066,-574.67,0.00039452,30]
[398335033,1765538018076,-500.0,0.00039452,30]
[398335034,1765538018086,-673.29,0.00039452,30]
[398335035,1765538018096,-500.0,0.00039452,30]
[398335036,1765538018106,-500.0,0.00039452,30]
[398335037,1765538018116,-1020.61,0.00039452,30]
[398335038,1765538018126,-500.0,0.00039452,30]
[398335039,1765538018136,-500.0,0.00039452,30]
[398335040,1765538018146,-507.79746616,0.00039452,30]
[398335041,1765538018157,-749.57,0.00039452,30]
[398335042,1765538018167,-500.0,0.00039452,30]
[398335043,1765538018177,-500.0,0.00039452,30]
[398335044,1765538018187,-558.5,0.00039452,30]
[398335045,1765538018202,-500.0,0.00039452,30]
[398335046,1765538018213,-314.9742137,0.00039452,30]
[398335047,1765538018223,-1224.23,0.00039452,30]
[398335048,1765538018233,-628.4,0.00039452,30]
[398335049,1765538018243,-500.0,0.00039452,30]
[398335050,1765538018253,-500.0,0.00039452,30]
[398335051,1765538018263,-1487.24,0.00039452,30]
[398335052,1765538018274,-500.0,0.00039452,30]
[398335053,1765538018284,-500.0,0.00039452,30]
[398335054,1765538018294,-500.0,0.00039452,30]
[398335055,1765538018304,-500.0,0.00039452,30]
[398335056,1765538018314,-643.83,0.00039452,30]
[398335057,1765538018330,-500.0,0.00039452,30]
[398335058,1765538018341,-1267.76,0.00039452,30]
[398335059,1765538018351,-500.0,0.00039452,30]
[398335060,1765538018362,-500.0,0.00039452,30]
[398335061,1765538018372,-554.79,0.00039452,30]
[398335062,1765538018387,-500.0,0.00039452,30]
[398335063,1765538018400,-500.0,0.00039452,30]
[398335064,1765538018411,-500.13,0.00039452,30]
[398335065,1765538018421,-500.0,0.00039452,30]
[398335066,1765538018432,-543.72,0.00039452,30]
[398335067,1765538018442,-1502.85,0.00039452,30]
[398335068,1765538018452,-901.37,0.00039452,30]
[398335069,1765538018462,-865.46,0.00039452,30]
[398335070,1765538018472,-506.43975042,0.00039452,30]
[398335071,1765538018482,-1483.56,0.00039452,30]
[398335072,1765538018492,-500.0,0.00039452,30]
[398335073,1765538018502,-500.0,0.00039452,30]
[398335074,1765538018512,-500.0,0.00039452,30]
[398335075,1765538018522,-500.0,0.00039452,30]
[398335076,1765538018532,-500.0,0.00039452,30]
[398335077,1765538018543,-500.0,0.00039452,30]
[398335078,1765538018552,-2056.86,0.00039452,30]
[398335079,1765538018562,-500.0,0.00039452,30]
[398335080,1765538018572,-500.0,0.00039452,30]
[398335081,1765538018584,-500.0,0.00039452,30]
[398335082,1765538018594,-500.0,0.00039452,30]
[398335083,1765538018604,-598.84,0.00039452,30]
[398335084,1765538018614,-500.0,0.00039452,30]
[398335085,1765538018624,-500.0,0.00039452,30]
[398335086,1765538018634,-500.0,0.00039452,30]
[398335087,1765538018644,-500.0,0.00039452,30]
[398335088,1765538018655,-500.0,0.00039452,30]
[398335089,1765538018664,-500.0,0.00039452,30]
[398335090,1765538018674,-500.0,0.00039452,30]
[398335091,1765538018684,-500.0,0.00039452,30]
[398335092,1765538018695,-500.0,0.00039452,30]
[398335093,1765538018704,-500.0,0.00039452,30]
[398335094,1765538018715,-500.0,0.00039452,30]
[398335095,1765538018724,-500.0,0.00039452,30]
[398335096,1765538018734,-500.0,0.00039452,30]
[398335097,1765538018744,-500.0,0.00039452,30]
[398335098,1765538018754,-500.0,0.00039452,30]
[398335099,1765538018763,-2287.8,0.00039452,30]
[398335100,1765538018773,-500.0,0.00039452,30]
[398335101,1765538018783,-511.121059,0.00039452,30]
[398335102,1765538018794,-500.0,0.00039452,30]
[398335103,1765538018804,-500.0,0.00039452,30]
[398335104,1765538018814,-500.0,0.00039452,30]